bitfinex/quotes_BTCUSD_20240819
["timestamp","ask_amount","ask_price","bid_price","bid_amount"]
[1724052960734,0.00063092,58686.0,58685.0,2.98659346]
[1724052960947,0.00051159,58686.0,58685.0,2.98659346]
[1724052961402,0.00019606,58686.0,58685.0,2.98659346]
[1724052961817,0.00019606,58686.0,58685.0,3.00059346]
[1724052962659,0.00019606,58686.0,58685.0,2.98659346]
[1724052962866,0.00019606,58686.0,58685.0,3.00059346]
[1724052964136,0.00019606,58686.0,58685.0,3.06886746]
[1724052964589,0.00019606,58686.0,58685.0,3.00059346]
[1724052964798,0.00019606,58686.0,58685.0,2.91809346]
[1724052966230,0.00019606,58686.0,58685.0,2.92829116]
[1724052966656,0.0613,58690.0,58689.0,0.95492192]
[1724052966880,0.0613,58690.0,58689.0,1.14947646]
[1724052967538,0.0801,58694.0,58693.0,0.83816592]
[1724052967742,0.05095086,58706.0,58705.0,0.00031492]
[1724052967948,0.11295086,58706.0,58705.0,0.02331492]
[1724052968159,0.1387,58706.0,58705.0,0.25925492]
[1724052968381,0.1387,58706.0,58705.0,0.23625492]
[1724052968582,0.1387,58706.0,58705.0,0.25925492]
[1724052969016,0.1387,58706.0,58705.0,0.49773492]
[1724052969232,0.1387,58706.0,58705.0,0.14255492]
[1724052969437,0.257938,58706.0,58705.0,0.02331492]
[1724052969674,0.3089057,58706.0,58705.0,0.02331492]
[1724052969872,0.5473817,58706.0,58705.0,0.00031492]
[1724052970086,0.257938,58706.0,58705.0,0.00031492]
[1724052970428,0.496414,58706.0,58705.0,0.00031492]
[1724052970609,0.500032,58703.0,58702.0,0.00031492]
[1724052970815,0.500032,58703.0,58700.0,0.02331492]
[1724052970816,0.500044,58701.0,58700.0,0.02331492]
[1724052971086,0.57648555,58701.0,58700.0,0.02331492]
[1724052971778,0.57648555,58701.0,58700.0,0.00031492]
[1724052971989,0.57648555,58701.0,58700.0,0.02331492]
[1724052972188,0.59491732,58701.0,58700.0,0.02631492]
[1724052972855,0.59491732,58701.0,58700.0,0.03031492]
[1724052973056,0.59491732,58701.0,58700.0,0.02731492]
[1724052973256,0.59491732,58701.0,58700.0,0.02331492]
[1724052973467,0.59491732,58701.0,58700.0,0.00031492]
[1724052973811,0.59492357,58701.0,58700.0,0.00031492]
[1724052974640,0.51847577,58701.0,58700.0,0.00031492]
[1724052974839,0.51847577,58701.0,58700.0,0.00131492]
[1724052976294,0.56185628,58701.0,58700.0,0.00131492]
[1724052977240,0.66378668,58701.0,58700.0,0.00131492]
[1724052977497,0.71011935,58701.0,58700.0,0.00131492]
[1724052978547,0.71018874,58701.0,58700.0,0.00131492]
[1724052978938,0.71109295,58701.0,58700.0,0.00131492]
[1724052979335,0.66476028,58701.0,58700.0,0.00131492]
[1724052979645,0.66444434,58701.0,58700.0,0.00131492]
[1724052980291,0.56247118,58701.0,58700.0,0.00131492]
[1724052980503,0.60881046,58701.0,58700.0,0.00131492]
[1724052980707,0.56247118,58701.0,58700.0,0.00131492]
[1724052980893,0.60881088,58701.0,58700.0,0.00131492]
[1724052981317,0.68993763,58701.0,58700.0,0.00131492]
[1724052983303,0.56247118,58701.0,58700.0,0.00131492]
[1724052984832,0.80096718,58701.0,58700.0,0.00131492]
[1724052986447,0.84730414,58701.0,58700.0,0.00131492]
[1724052987599,0.84730414,58701.0,58700.0,0.00031492]
[1724052987805,0.84733061,58701.0,58700.0,0.00031492]
[1724052988641,0.60883461,58701.0,58700.0,0.00031492]
[1724052989240,0.56249765,58701.0,58700.0,0.00031492]
[1724052990040,0.1409,58699.0,58696.0,0.00031492]
[1724052990231,0.1409,58699.0,58698.0,0.00031492]
[1724052990232,0.357756,58699.0,58698.0,0.00031492]
[1724052990432,0.40085484,58699.0,58698.0,0.00031492]
[1724052990806,0.53985484,58699.0,58698.0,0.00031492]
[1724052991424,0.77835884,58699.0,58698.0,0.00031492]
[1724052993132,0.77835884,58699.0,58698.0,0.00131492]
[1724052993766,0.77835884,58699.0,58698.0,0.00031492]
[1724052994673,0.77835884,58699.0,58698.0,0.00231492]
[1724052995296,0.77835884,58699.0,58698.0,0.00031492]
[1724052997173,0.7782706,58699.0,58698.0,0.00031492]
[1724052999026,0.90583383,58699.0,58698.0,0.00031492]
[1724052999444,0.77807488,58699.0,58698.0,0.00031492]
[1724053000263,0.90563944,58699.0,58698.0,0.00031492]
[1724053001907,0.90500983,58699.0,58698.0,0.00031492]
[1724053002361,0.79585172,58699.0,58698.0,0.00031492]
[1724053004006,0.92341369,58699.0,58698.0,0.00031492]
[1724053004149,0.96973908,58699.0,58698.0,0.00031492]
[1724053004350,0.84217711,58699.0,58698.0,0.00031492]
[1724053004661,0.96973908,58699.0,58698.0,0.00031492]
[1724053005107,0.84217711,58699.0,58698.0,0.00031492]
[1724053005276,0.60367311,58699.0,58698.0,0.00031492]
[1724053005451,0.70573029,58699.0,58698.0,0.00031492]
[1724053005650,0.60367311,58699.0,58698.0,0.00031492]
[1724053005853,0.73123508,58699.0,58698.0,0.00031492]
[1724053006637,0.73172025,58699.0,58698.0,0.00031492]
[1724053008963,0.60414127,58699.0,58698.0,0.00031492]
[1724053010324,0.65522025,58699.0,58698.0,0.00031492]
[1724053010538,0.52764127,58699.0,58698.0,0.00031492]
[1724053010746,0.10738527,58699.0,58698.0,0.00031492]
[1724053010956,0.13765586,58699.0,58698.0,0.00031492]
[1724053011402,0.01840386,58699.0,58698.0,0.00031492]
[1724053012075,0.01840386,58699.0,58698.0,0.07751492]
[1724053012271,0.01840386,58699.0,58698.0,0.73518492]
[1724053012272,0.0949931,58699.0,58698.0,0.73518492]
[1724053012485,0.01840386,58699.0,58698.0,0.75818492]
[1724053012910,0.00090421,58701.0,58700.0,0.97366492]
[1724053013139,0.00090421,58701.0,58700.0,1.11436492]
[1724053013348,0.00090421,58701.0,58700.0,1.11336492]
[1724053014176,0.00090421,58701.0,58700.0,0.99766492]
[1724053014392,0.05072356,58706.0,58705.0,0.55402]
[1724053014591,0.05072356,58706.0,58705.0,0.57702]
[1724053015477,0.07659007,58708.0,58707.0,0.119235]
[1724053015685,0.07659007,58708.0,58707.0,0.142235]
[1724053017173,0.07659007,58709.0,58707.0,0.142235]
[1724053017376,0.07659007,58709.0,58708.0,0.023]
[1724053019175,0.07659007,58710.0,58708.0,0.023]
[1724053021478,0.07659007,58710.0,58708.0,0.00031492]
[1724053021479,0.196932,58709.0,58708.0,0.00031492]
[1724053021892,0.196932,58709.0,58708.0,0.00131492]
[1724053021893,0.260332,58709.0,58708.0,0.00131492]
[1724053022711,0.260332,58709.0,58708.0,0.00031492]
[1724053023952,0.182632,58709.0,58708.0,0.00031492]
[1724053024166,0.19657783,58711.0,58708.0,0.00031492]
[1724053024377,0.05100121,58710.0,58708.0,0.02331492]
[1724053025411,0.05100121,58710.0,58709.0,0.00031492]
[1724053027370,0.05182321,58711.0,58709.0,0.11954692]
[1724053027862,0.05182321,58711.0,58709.0,0.00031492]
[1724053028087,0.05181414,58711.0,58709.0,0.00031492]
[1724053028305,0.05181414,58711.0,58709.0,0.00131492]
[1724053030165,0.05181414,58711.0,58709.0,0.00031492]
[1724053030834,0.000822,58711.0,58709.0,0.00031492]
[1724053031419,0.000822,58711.0,58709.0,0.00131492]
[1724053032251,0.000822,58711.0,58709.0,0.12054492]
[1724053032464,0.0185462,58710.0,58709.0,0.12054492]
[1724053032669,0.0185462,58710.0,58709.0,0.14354492]
[1724053032887,0.0185462,58710.0,58709.0,0.76827292]
[1724053033092,0.0185462,58710.0,58709.0,1.01114351]
[1724053033296,0.0185462,58710.0,58709.0,1.01314351]
[1724053033502,0.000822,58711.0,58710.0,0.97681]
[1724053033707,0.000822,58711.0,58710.0,0.99981]
[1724053034353,0.000822,58711.0,58710.0,1.00281]
[1724053034760,0.000822,58711.0,58710.0,1.01281]
[1724053035174,0.000822,58711.0,58710.0,1.00981]
[1724053035833,0.000822,58711.0,58710.0,1.01981]
[1724053036442,0.000822,58711.0,58710.0,1.01281]
[1724053037102,0.000822,58711.0,58710.0,1.01381]
[1724053037523,0.000822,58711.0,58710.0,1.02381]
[1724053037729,0.000822,58711.0,58710.0,1.01412492]
[1724053038372,0.000822,58711.0,58710.0,1.01112492]
[1724053038575,0.000822,58711.0,58710.0,1.02112492]
[1724053038785,0.000822,58711.0,58710.0,1.01012492]
[1724053038992,0.000822,58711.0,58710.0,1.00012492]
[1724053039211,0.000822,58711.0,58710.0,1.02312492]
[1724053039425,0.000822,58711.0,58710.0,1.02612492]
[1724053039644,0.000822,58711.0,58710.0,1.02312492]
[1724053040069,0.000822,58711.0,58710.0,1.14082492]
[1724053040503,0.000822,58711.0,58710.0,1.13182492]
[1724053040709,0.000822,58711.0,58710.0,1.13382492]
[1724053041119,0.000822,58711.0,58710.0,1.14782492]
[1724053042581,0.000822,58711.0,58710.0,1.11982492]
[1724053042986,0.000822,58711.0,58710.0,1.13382492]
[1724053044227,0.06375069,58724.0,58722.0,0.119204]
[1724053044434,0.06375069,58724.0,58723.0,0.14251792]
[1724053045042,0.000823,58725.0,58724.0,0.83472492]
[1724053045250,0.000823,58725.0,58724.0,0.69982192]
[1724053045455,0.000823,58725.0,58724.0,0.93822492]
[1724053046237,0.000823,58725.0,58724.0,0.93922492]
[1724053046454,0.000823,58725.0,58724.0,0.99982492]
[1724053046878,0.000823,58725.0,58724.0,1.00182492]
[1724053047077,0.000823,58725.0,58724.0,1.41178246]
[1724053047281,0.000823,58725.0,58724.0,1.42278246]
[1724053047689,0.000823,58725.0,58724.0,1.41978246]
[1724053048043,0.000823,58725.0,58724.0,2.91978246]
[1724053048423,0.000823,58725.0,58724.0,2.69137946]
[1724053048640,0.000823,58725.0,58724.0,2.68137946]
[1724053049232,0.000823,58725.0,58724.0,2.67037946]
[1724053049434,0.000823,58725.0,58724.0,2.67137946]
[1724053049632,0.000823,58725.0,58724.0,2.67337946]
[1724053049823,0.000823,58725.0,58724.0,2.70137946]
[1724053049953,0.000823,58725.0,58724.0,2.68737946]
[1724053050155,0.000823,58725.0,58724.0,2.68537946]
[1724053050615,0.000823,58725.0,58724.0,2.68737946]
[1724053050847,0.000823,58725.0,58724.0,2.68437946]
[1724053051056,0.000823,58725.0,58724.0,2.80107946]
[1724053051257,0.000823,58725.0,58724.0,1.06892492]
[1724053051662,0.000823,58725.0,58724.0,1.08292492]
[1724053051890,0.000823,58725.0,58724.0,1.06892492]
[1724053052922,0.000823,58725.0,58724.0,1.08292492]
[1724053053553,0.000823,58725.0,58724.0,2.58292492]
[1724053055812,0.000823,58725.0,58724.0,1.08292492]
[1724053056233,0.000823,58725.0,58724.0,2.58292492]
[1724053057434,0.000823,58725.0,58724.0,1.08292492]
[1724053061357,0.000823,58725.0,58724.0,2.58592492]
[1724053063951,0.000823,58725.0,58724.0,2.58292492]
[1724053064349,0.000823,58725.0,58724.0,1.08292492]
[1724053064874,0.000823,58725.0,58724.0,2.58292492]
[1724053065274,0.000823,58725.0,58724.0,2.58392492]
[1724053065617,0.000823,58725.0,58724.0,2.58292492]
[1724053067056,0.000823,58725.0,58724.0,2.58392492]
[1724053067973,0.000823,58725.0,58724.0,1.08392492]
[1724053068386,0.000823,58725.0,58724.0,2.58392492]
[1724053068735,0.000823,58725.0,58724.0,2.58292492]
[1724053069092,0.000823,58725.0,58724.0,2.58392492]
[1724053069292,0.000823,58725.0,58724.0,2.58592492]
[1724053071311,0.000823,58725.0,58724.0,1.08592492]
[1724053071907,0.000823,58725.0,58724.0,2.58592492]
[1724053073537,0.143523,58725.0,58724.0,0.02831492]
[1724053073746,0.262722,58725.0,58724.0,0.02831492]
[1724053073946,0.51464796,58725.0,58724.0,0.02831492]
[1724053074194,0.15704996,58725.0,58724.0,0.02831492]
[1724053074725,0.15704996,58725.0,58724.0,0.01431492]
[1724053075012,0.15704996,58725.0,58724.0,0.03731492]
[1724053075144,0.15704996,58725.0,58724.0,0.02331492]
[1724053075349,0.15704996,58725.0,58724.0,0.03131492]
[1724053075980,0.15704996,58725.0,58724.0,0.02331492]
[1724053076337,0.15704996,58725.0,58724.0,0.00531492]
[1724053076557,0.15704996,58725.0,58724.0,0.02831492]
[1724053076762,0.15704996,58725.0,58724.0,0.03231492]
[1724053078455,0.27624896,58725.0,58724.0,0.03231492]
[1724053078665,0.86974696,58725.0,58724.0,0.00931492]
[1724053078879,0.92072426,58725.0,58724.0,0.009]
[1724053079091,0.86974696,58725.0,58724.0,0.009]
[1724053079912,0.94621291,58725.0,58724.0,0.009]
[1724053080114,0.94621291,58725.0,58721.0,0.00031492]
[1724053080115,0.357616,58722.0,58721.0,0.00031492]
[1724053080316,0.357616,58722.0,58715.0,0.119219]
[1724053080317,0.501422,58721.0,58720.0,0.00031492]
[1724053080527,0.238411,58722.0,58719.0,0.00031492]
[1724053080528,0.596047,58720.0,58719.0,0.00031492]
[1724053080739,0.596047,58720.0,58711.0,0.120049]
[1724053080740,0.19316595,58720.0,58714.0,0.00031492]
[1724053080942,0.497558,58715.0,58714.0,0.00031492]
[1724053081165,0.357678,58712.0,58711.0,0.00113692]
[1724053081373,0.497578,58712.0,58711.0,0.000822]
[1724053081581,0.497578,58712.0,58711.0,0.00113692]
[1724053081582,0.74922618,58712.0,58711.0,0.00113692]
[1724053081990,0.74922618,58712.0,58711.0,0.000822]
[1724053083584,0.51077418,58712.0,58711.0,0.00113692]
[1724053084195,0.51077418,58712.0,58711.0,0.00513692]
[1724053085320,0.51077418,58712.0,58711.0,0.00913692]
[1724053091331,0.43277418,58712.0,58711.0,0.00913692]
[1724053092573,0.67122618,58712.0,58711.0,0.00913692]
[1724053092779,0.67122618,58712.0,58711.0,0.008822]
[1724053092981,0.74972618,58712.0,58711.0,0.008822]
[1724053095064,1.10487818,58712.0,58711.0,0.008822]
[1724053096296,0.98817818,58712.0,58711.0,0.008822]
[1724053096702,0.98817818,58712.0,58711.0,0.004822]
[1724053096879,0.98817818,58712.0,58711.0,0.000822]
[1724053097957,0.99417818,58712.0,58711.0,0.001822]
[1724053099825,0.75572618,58712.0,58711.0,0.001822]
[1724053103177,0.87242618,58712.0,58711.0,0.001822]
[1724053103641,0.9835137,58712.0,58711.0,0.001822]
[1724053103822,1.11087818,58712.0,58711.0,0.001822]
[1724053104242,1.2616567,58712.0,58711.0,0.001822]
[1724053104638,1.26164638,58712.0,58711.0,0.001822]
[1724053105119,1.22092073,58712.0,58711.0,0.001822]
[1724053105325,1.3180138,58712.0,58711.0,0.001822]
[1724053105929,1.26725029,58712.0,58711.0,0.001822]
[1724053106362,1.31801141,58712.0,58711.0,0.001822]
[1724053106610,1.15055029,58712.0,58711.0,0.001822]
[1724053107012,1.20131215,58712.0,58711.0,0.001822]
[1724053107443,1.20131107,58712.0,58711.0,0.001822]
[1724053108399,1.2013127,58712.0,58711.0,0.001822]
[1724053109227,1.15055029,58712.0,58711.0,0.001822]
[1724053111247,1.22669442,58712.0,58711.0,0.001822]
[1724053111456,1.46614642,58712.0,58711.0,0.001822]
[1724053111659,1.40293404,58712.0,58711.0,0.001822]
[1724053111862,1.32678991,58712.0,58711.0,0.001822]
[1724053112037,1.56524191,58712.0,58711.0,0.001822]
[1724053112235,1.70415713,58712.0,58711.0,0.001822]
[1724053112910,1.69815713,58712.0,58711.0,0.000822]
[1724053113084,1.69815713,58712.0,58711.0,0.001822]
[1724053113284,1.70415713,58712.0,58711.0,0.001822]
[1724053113664,1.70037664,58712.0,58711.0,0.001822]
[1724053114021,1.5348221,58712.0,58711.0,0.002822]
[1724053114331,1.43324163,58712.0,58711.0,0.002822]
[1724053114614,1.42924163,58712.0,58711.0,0.002822]
[1724053115331,1.55621722,58712.0,58711.0,0.002822]
[1724053115545,1.55821722,58712.0,58711.0,0.002822]
[1724053115770,1.56021722,58712.0,58711.0,0.002822]
[1724053116416,1.43324163,58712.0,58711.0,0.002822]
[1724053116934,1.42924163,58712.0,58711.0,0.002822]
[1724053117478,1.19078963,58712.0,58711.0,0.002822]
[1724053118039,1.42924163,58712.0,58711.0,0.002822]
[1724053118279,1.42919881,58712.0,58711.0,0.002822]
[1724053119283,1.58175291,58712.0,58711.0,0.002822]
[1724053120322,1.53404534,58712.0,58711.0,0.002822]
[1724053121294,1.53604534,58712.0,58711.0,0.002822]
[1724053122100,1.29959334,58712.0,58711.0,0.002822]
[1724053122556,1.29559334,58712.0,58711.0,0.002822]
[1724053122783,1.46714788,58712.0,58711.0,0.002822]
[1724053123806,1.70650409,58712.0,58711.0,0.002822]
[1724053124035,1.46805209,58712.0,58711.0,0.002822]
[1724053124995,1.70850409,58712.0,58711.0,0.002822]
[1724053125385,1.64167546,58712.0,58711.0,0.002822]
[1724053125715,1.88212746,58712.0,58711.0,0.002822]
[1724053125949,1.64367546,58712.0,58711.0,0.002822]
[1724053126361,1.88212746,58712.0,58711.0,0.002822]
[1724053126608,1.76027546,58712.0,58711.0,0.002822]
[1724053126963,1.99872746,58712.0,58711.0,0.002822]
[1724053127592,1.75627546,58712.0,58711.0,0.002822]
[1724053128000,1.99472746,58712.0,58711.0,0.002822]
[1724053128757,1.75627546,58712.0,58711.0,0.002822]
[1724053129033,1.58472092,58712.0,58711.0,0.002822]
[1724053129238,1.82317292,58712.0,58711.0,0.002822]
[1724053129572,1.70857292,58712.0,58711.0,0.002822]
[1724053129779,1.82317292,58712.0,58711.0,0.002822]
[1724053130840,1.82517292,58712.0,58711.0,0.002822]
[1724053131014,1.82317292,58712.0,58711.0,0.002822]
[1724053132482,1.58472092,58712.0,58711.0,0.002822]
[1724053133145,1.58672092,58712.0,58711.0,0.002822]
[1724053133347,1.82717292,58712.0,58711.0,0.002822]
[1724053134190,1.82317292,58712.0,58711.0,0.002822]
[1724053134401,1.58472092,58712.0,58711.0,0.002822]
[1724053135178,1.38893584,58712.0,58711.0,0.002822]
[1724053135379,1.27201247,58712.0,58711.0,0.002822]
[1724053140740,1.27648575,58712.0,58711.0,0.002822]
[1724053144637,1.27394913,58712.0,58711.0,0.002822]
[1724053144834,1.44620996,58712.0,58711.0,0.002822]
[1724053145142,1.27394913,58712.0,58711.0,0.002822]
[1724053147188,0.57007431,58712.0,58711.0,0.081722]
[1724053147391,0.57007431,58712.0,58711.0,0.142122]
[1724053147392,0.46399969,58712.0,58711.0,0.142122]
[1724053147603,0.61720354,58712.0,58711.0,0.142122]
[1724053147848,0.46399969,58712.0,58711.0,0.142122]
[1724053148208,0.70245169,58712.0,58711.0,0.142122]
[1724053148406,0.85565554,58712.0,58711.0,0.142122]
[1724053149328,0.85849454,58712.0,58711.0,0.142122]
[1724053150545,0.70526838,58712.0,58711.0,0.142122]
[1724053150945,0.46681638,58712.0,58711.0,0.142122]
[1724053151770,0.46381638,58712.0,58711.0,0.141122]
[1724053151994,0.46681638,58712.0,58711.0,0.142122]
[1724053152153,0.46081638,58712.0,58711.0,0.141122]
[1724053152551,0.46681638,58712.0,58711.0,0.141122]
[1724053152755,0.46081638,58712.0,58711.0,0.140122]
[1724053153228,0.46081638,58712.0,58711.0,0.141122]
[1724053153229,0.46681638,58712.0,58711.0,0.141122]
[1724053153496,0.70526838,58712.0,58711.0,0.141122]
[1724053153694,0.85849454,58712.0,58711.0,0.080722]
[1724053153902,0.81035108,58712.0,58711.0,0.080722]
[1724053155084,0.82063092,58712.0,58711.0,0.080722]
[1724053157362,0.81035108,58712.0,58711.0,0.080722]
[1724053158550,0.81022653,58712.0,58711.0,0.001822]
[1724053158956,1.2742764,58712.0,58711.0,0.001822]
[1724053159392,1.18857853,58712.0,58711.0,0.001822]
[1724053160148,1.28857853,58712.0,58711.0,0.001822]
[1724053163094,1.28818316,58712.0,58711.0,0.001822]
[1724053165965,1.46047488,58712.0,58711.0,0.001822]
[1724053166356,1.28818316,58712.0,58711.0,0.001822]
[1724053166828,1.38057724,58712.0,58711.0,0.001822]
[1724053167004,1.48817724,58712.0,58711.0,0.000822]
[1724053167356,1.49617724,58712.0,58711.0,0.002822]
[1724053167703,1.50279271,58712.0,58711.0,0.002822]
[1724053167924,1.49479271,58712.0,58711.0,0.001822]
[1724053168353,1.50279271,58712.0,58711.0,0.002822]
[1724053169016,1.50279271,58712.0,58711.0,0.001822]
[1724053169017,1.49179271,58712.0,58711.0,0.001822]
[1724053169163,1.50279271,58712.0,58711.0,0.001822]
[1724053171408,1.33049077,58712.0,58711.0,0.001822]
[1724053172290,1.33017646,58712.0,58711.0,0.001822]
[1724053176853,1.33007322,58712.0,58711.0,0.001822]
[1724053178652,1.32975831,58712.0,58711.0,0.001822]
[1724053179951,1.329035,58712.0,58711.0,0.001822]
[1724053181694,1.18896877,58712.0,58711.0,0.001822]
[1724053181935,1.32896864,58712.0,58711.0,0.001822]
[1724053182730,1.32853587,58712.0,58711.0,0.001822]
[1724053184575,1.50093335,58712.0,58711.0,0.001822]
[1724053185154,1.32433335,58712.0,58711.0,0.143022]
[1724053185355,1.15193587,58712.0,58711.0,0.143022]
[1724053185964,0.9628347,58712.0,58711.0,0.143022]
[1724053186167,0.8628347,58712.0,58711.0,0.143022]
[1724053186526,0.70958358,58712.0,58711.0,0.143022]
[1724053186933,0.46313158,58712.0,58711.0,0.142022]
[1724053187377,0.47213158,58712.0,58711.0,0.143022]
[1724053187786,0.46313158,58712.0,58711.0,0.142022]
[1724053187987,0.10752953,58712.0,58711.0,0.26156492]
[1724053188210,0.14580529,58712.0,58711.0,0.26156492]
[1724053188428,0.18190487,58712.0,58711.0,0.28456492]
[1724053188737,0.16403601,58712.0,58711.0,0.28456492]
[1724053188908,0.01478581,58712.0,58711.0,0.28456492]
[1724053189270,0.01478581,58712.0,58711.0,0.52302092]
[1724053189498,0.0873837,58712.0,58711.0,0.52302092]
[1724053189904,0.0933837,58712.0,58711.0,0.52302092]
[1724053190272,0.01678581,58712.0,58711.0,0.52302092]
[1724053190481,0.06484247,58712.0,58711.0,0.52302092]
[1724053190847,0.06484247,58712.0,58711.0,0.52502092]
[1724053191287,0.06184247,58712.0,58711.0,0.52502092]
[1724053191441,0.01078581,58712.0,58711.0,0.52502092]
[1724053191652,0.01078581,58712.0,58711.0,0.52602092]
[1724053193858,0.01078581,58712.0,58711.0,1.00293292]
[1724053194061,0.01078581,58712.0,58711.0,1.00393292]
[1724053194261,0.01078581,58712.0,58711.0,1.00593292]
[1724053194262,0.00090421,58712.0,58711.0,1.00593292]
[1724053194681,0.00090421,58712.0,58711.0,2.67548746]
[1724053194904,0.00090421,58712.0,58711.0,2.67748746]
[1724053195126,0.00090421,58712.0,58711.0,2.67648746]
[1724053195582,0.00090421,58712.0,58711.0,2.68767778]
[1724053196023,0.00090421,58712.0,58711.0,2.67648746]
[1724053196234,0.00090421,58712.0,58711.0,1.17648746]
[1724053196437,0.00190421,58712.0,58711.0,1.17548746]
[1724053196616,0.00190421,58712.0,58711.0,2.67548746]
[1724053196848,0.00290421,58712.0,58711.0,2.68948746]
[1724053197515,0.00190421,58712.0,58711.0,2.67548746]
[1724053197932,0.00290421,58712.0,58711.0,2.68948746]
[1724053198544,0.00290421,58712.0,58711.0,2.68648746]
[1724053198748,0.00290421,58712.0,58711.0,2.68748746]
[1724053198952,0.00290421,58712.0,58711.0,2.68948746]
[1724053199993,0.00290421,58712.0,58711.0,2.68748746]
[1724053200167,0.00290421,58712.0,58711.0,2.68948746]
[1724053201411,0.00290421,58712.0,58711.0,2.68648746]
[1724053201617,0.00290421,58712.0,58711.0,2.80308746]
[1724053201819,0.00290421,58712.0,58711.0,2.80408746]
[1724053202150,0.00290421,58712.0,58711.0,2.80608746]
[1724053203778,0.000823,58725.0,58724.0,0.74312192]
[1724053203991,0.000823,58725.0,58724.0,0.88272192]
[1724053204189,0.000823,58725.0,58724.0,1.12212492]
[1724053204673,0.000823,58725.0,58724.0,1.12112492]
[1724053204831,0.000823,58725.0,58724.0,1.12212492]
[1724053205236,0.001823,58725.0,58724.0,1.12412492]
[1724053205435,0.001823,58725.0,58724.0,2.62412492]
[1724053205636,0.001823,58725.0,58724.0,2.62612492]
[1724053206116,0.000823,58725.0,58724.0,2.62412492]
[1724053206312,0.000823,58725.0,58724.0,1.12412492]
[1724053206526,0.000823,58725.0,58724.0,1.12312492]
[1724053206527,0.001823,58725.0,58724.0,1.12312492]
[1724053206667,0.000823,58725.0,58724.0,1.12112492]
[1724053206881,0.000823,58725.0,58724.0,1.12912492]
[1724053207403,0.000823,58725.0,58724.0,1.30067946]
[1724053207797,0.000823,58725.0,58724.0,1.29367946]
[1724053208156,0.000823,58725.0,58724.0,1.30667946]
[1724053208809,0.000823,58725.0,58724.0,1.29367946]
[1724053209217,0.001823,58725.0,58724.0,1.30567946]
[1724053209598,0.001823,58725.0,58724.0,1.29367946]
[1724053209599,0.000823,58725.0,58724.0,1.29367946]
[1724053209810,0.001823,58725.0,58724.0,1.30767946]
[1724053209964,0.001823,58725.0,58724.0,1.30967946]
[1724053210175,0.001823,58725.0,58724.0,1.32367946]
[1724053210774,0.001823,58725.0,58724.0,1.32067946]
[1724053212245,0.001823,58725.0,58724.0,0.79412192]
[1724053212460,0.001823,58725.0,58724.0,0.14751592]
[1724053212878,0.001823,58725.0,58724.0,0.22431592]
[1724053212879,0.01051193,58725.0,58724.0,0.22431592]
[1724053213090,0.001823,58725.0,58724.0,0.22431592]
[1724053213294,0.001823,58725.0,58724.0,0.10511492]
[1724053213529,0.01051193,58725.0,58724.0,0.22431592]
[1724053213709,0.001823,58725.0,58724.0,0.12811492]
[1724053213926,0.001823,58725.0,58724.0,0.05131492]
[1724053214135,0.07381193,58725.0,58724.0,0.05131492]
[1724053218633,0.19301093,58725.0,58724.0,0.05131492]
[1724053219048,0.07381193,58725.0,58724.0,0.05131492]
[1724053219459,0.19301093,58725.0,58724.0,0.02831492]
[1724053219665,0.43140993,58725.0,58724.0,0.02831492]
[1724053220275,0.19301093,58725.0,58724.0,0.01431492]
[1724053221315,0.19201093,58725.0,58724.0,0.00331492]
[1724053221655,0.19201093,58725.0,58724.0,0.00231492]
[1724053221855,0.19201093,58725.0,58724.0,0.00031492]
[1724053222440,0.19201093,58725.0,58724.0,0.00531492]
[1724053223751,0.43040993,58725.0,58724.0,0.00531492]
[1724053227240,0.19201093,58725.0,58724.0,0.00531492]
[1724053228110,0.12871093,58725.0,58724.0,0.00531492]
[1724053229533,0.00951193,58725.0,58724.0,0.00531492]
[1724053229736,0.00951193,58725.0,58724.0,0.46721892]
[1724053230171,0.000823,58725.0,58724.0,0.70562192]
[1724053232393,0.000823,58725.0,58724.0,0.22881592]
[1724053232831,0.00959848,58725.0,58724.0,0.22881592]
[1724053233098,0.12879748,58725.0,58724.0,0.02831492]
[1724053233349,0.19319748,58725.0,58724.0,0.02831492]
[1724053233568,0.43159648,58725.0,58724.0,0.00531492]
[1724053235853,0.66999548,58725.0,58724.0,0.005]
[1724053236218,1.1841964,58725.0,58724.0,0.005]
[1724053236547,1.20104201,58725.0,58724.0,0.005]
[1724053237309,1.20104201,58725.0,58724.0,0.002]
[1724053239268,0.596057,58719.0,58718.0,0.00031492]
[1724053239397,0.73671659,58719.0,58718.0,0.00031492]
[1724053239597,0.74541218,58719.0,58718.0,0.00031492]
[1724053240225,0.82121263,58719.0,58718.0,0.00031492]
[1724053241176,0.46357863,58719.0,58715.0,0.00121912]
[1724053241378,0.46357863,58719.0,58715.0,0.0009042]
[1724053241379,0.40861446,58716.0,58715.0,0.0009042]
[1724053241596,0.71054946,58716.0,58715.0,0.0009042]
[1724053241768,0.71914559,58716.0,58715.0,0.0009042]
[1724053242171,0.80214559,58716.0,58715.0,0.0009042]
[1724053242603,0.80212911,58716.0,58715.0,0.0009042]
[1724053242866,0.80212911,58716.0,58715.0,0.0039042]
[1724053243397,0.75118313,58716.0,58715.0,0.0039042]
[1724053243779,1.18266183,58716.0,58715.0,0.0059042]
[1724053243996,1.25051295,58716.0,58715.0,0.0059042]
[1724053244209,1.25051295,58716.0,58715.0,0.0039042]
[1724053244412,1.43332983,58716.0,58715.0,0.0009042]
[1724053244620,1.53332983,58716.0,58715.0,0.0009042]
[1724053244819,1.53332983,58716.0,58715.0,0.0019042]
[1724053245522,1.53401491,58716.0,58715.0,0.0009042]
[1724053245936,1.68893499,58716.0,58715.0,0.0009042]
[1724053246147,1.69393499,58716.0,58715.0,0.0009042]
[1724053246540,1.54101491,58716.0,58715.0,0.0009042]
[1724053246896,1.53801491,58716.0,58715.0,0.0009042]
[1724053247111,1.54001491,58716.0,58715.0,0.0009042]
[1724053247342,1.54601491,58716.0,58715.0,0.0019042]
[1724053247544,1.53801491,58716.0,58715.0,0.0009042]
[1724053247744,1.54401491,58716.0,58715.0,0.0019042]
[1724053247944,1.55801491,58716.0,58715.0,0.0029042]
[1724053248480,1.54801491,58716.0,58715.0,0.0019042]
[1724053248696,1.54169821,58716.0,58715.0,0.0019042]
[1724053248826,1.55101524,58716.0,58715.0,0.0019042]
[1724053249069,1.55701524,58716.0,58715.0,0.0029042]
[1724053249501,1.68400335,58716.0,58715.0,0.0029042]
[1724053250598,1.51068664,58716.0,58715.0,0.0029042]
[1724053251206,1.50068453,58716.0,58715.0,0.0029042]
[1724053251438,1.26224953,58716.0,58715.0,0.0029042]
[1724053251645,1.36380693,58716.0,58715.0,0.0029042]
[1724053251865,1.22621813,58716.0,58715.0,0.0029042]